[Event "Titled Tuesday Blitz December 7 2021"]
[White "Korchmar, Vasiliy"]
[Black "Brunner, Nicolas"]
[WhiteFideId "24131750"]
[BlackFideId "620246"]
[WhiteElo "2370"]
[BlackElo "2372"]
[Result "1-0"]
[Round "10"]
[TimeControl "180+1"]
[Date "2021.12.07"]
[WhiteClock "0:00:04"]
[BlackClock "0:00:01"]

1. e4 {[%clk 0:03:00]}  e5 {[%clk 0:02:59]} 2. Nf3 {[%clk 0:03:00]}  Nc6 {[%clk 0:02:57]} 3. Bb5 {[%clk 0:03:01]}  a6 {[%clk 0:02:57]} 4. Ba4 {[%clk 0:03:01]}  Nf6 {[%clk 0:02:57]} 5. d3 {[%clk 0:03:01]}  d6 {[%clk 0:02:49]} 6. c4 {[%clk 0:03:00]}  g6 {[%clk 0:02:47]} 7. Nc3 {[%clk 0:03:00]}  Bg7 {[%clk 0:02:47]} 8. O-O {[%clk 0:03:01]}  O-O {[%clk 0:02:47]} 9. Nd5 {[%clk 0:03:00]}  Nd7 {[%clk 0:02:43]} 10. Bg5 {[%clk 0:02:37]}  f6 {[%clk 0:02:43]} 11. Be3 {[%clk 0:02:37]}  Nc5 {[%clk 0:02:33]} 12. Bc2 {[%clk 0:02:35]}  Bg4 {[%clk 0:02:31]} 13. h3 {[%clk 0:02:18]}  Bxf3 {[%clk 0:02:31]} 14. Qxf3 {[%clk 0:02:19]}  Ne6 {[%clk 0:02:32]} 15. Qd1 {[%clk 0:02:11]}  Ncd4 {[%clk 0:02:29]} 16. Nc3 {[%clk 0:02:06]}  c6 {[%clk 0:02:25]} 17. Ne2 {[%clk 0:02:06]}  Nxe2+ {[%clk 0:02:15]} 18. Qxe2 {[%clk 0:02:07]}  f5 {[%clk 0:02:16]} 19. f3 {[%clk 0:02:06]}  f4 {[%clk 0:02:13]} 20. Bf2 {[%clk 0:02:06]}  g5 {[%clk 0:02:10]} 21. b4 {[%clk 0:02:04]}  c5 {[%clk 0:02:07]} 22. Rab1 {[%clk 0:01:58]}  Qc7 {[%clk 0:02:04]} 23. Rb2 {[%clk 0:01:45]}  b6 {[%clk 0:01:59]} 24. Rfb1 {[%clk 0:01:44]}  Rab8 {[%clk 0:01:59]} 25. a4 {[%clk 0:01:36]}  a5 {[%clk 0:01:46]} 26. bxa5 {[%clk 0:01:36]}  bxa5 {[%clk 0:01:47]} 27. Rb5 {[%clk 0:01:36]}  Nd4 {[%clk 0:01:37]} 28. Bxd4 {[%clk 0:01:35]}  exd4 {[%clk 0:01:37]} 29. Qe1 {[%clk 0:01:27]}  Rxb5 {[%clk 0:01:34]} 30. cxb5 {[%clk 0:01:25]}  Rb8 {[%clk 0:01:25]} 31. Bb3+ {[%clk 0:01:24]}  Kh8 {[%clk 0:01:25]} 32. Bd5 {[%clk 0:01:21]}  Qb6 {[%clk 0:01:21]} 33. h4 {[%clk 0:01:20]}  Bf6 {[%clk 0:01:08]} 34. Kf2 {[%clk 0:01:08]}  gxh4 {[%clk 0:01:06]} 35. Qh1 {[%clk 0:01:08]}  Qc7 {[%clk 0:01:00]} 36. Qh3 {[%clk 0:01:07]}  Qg7 {[%clk 0:00:47]} 37. b6 {[%clk 0:00:51]}  Qg3+ {[%clk 0:00:45]} 38. Ke2 {[%clk 0:00:46]}  Bd8 {[%clk 0:00:36]} 39. b7 {[%clk 0:00:39]}  Qxh3 {[%clk 0:00:16]} 40. gxh3 {[%clk 0:00:40]}  h6 {[%clk 0:00:16]} 41. Rg1 {[%clk 0:00:26]}  Bg5 {[%clk 0:00:15]} 42. Rb1 {[%clk 0:00:22]}  Bd8 {[%clk 0:00:15]} 43. Kd2 {[%clk 0:00:19]}  Kg7 {[%clk 0:00:15]} 44. Kc2 {[%clk 0:00:17]}  Kf8 {[%clk 0:00:14]} 45. Kb3 {[%clk 0:00:17]}  Ke7 {[%clk 0:00:12]} 46. Kc4 {[%clk 0:00:17]}  Kd7 {[%clk 0:00:12]} 47. Kb5 {[%clk 0:00:14]}  Ke7 {[%clk 0:00:05]} 48. Kc6 {[%clk 0:00:09]}  Kf6 {[%clk 0:00:04]} 49. Rg1 {[%clk 0:00:08]}  Ke7 {[%clk 0:00:02]} 50. Rg7+ {[%clk 0:00:08]}  Kf6 {[%clk 0:00:02]} 51. Rg8 {[%clk 0:00:08]}  Ke7 {[%clk 0:00:02]} 52. Rg7+ {[%clk 0:00:07]}  Kf6 {[%clk 0:00:02]} 53. Rf7+ {[%clk 0:00:07]}  Kg6 {[%clk 0:00:02]} 54. Kxd6 {[%clk 0:00:08]}  Bf6 {[%clk 0:00:01]} 55. Kc7 {[%clk 0:00:04]} 1-0


[Site "https://www.chess.com"]

[Event "Titled Tuesday Blitz December 7 2021"]
[White "Kretchetov, Alexandre"]
[Black "Peng, Li Min"]
[WhiteFideId "4124588"]
[BlackFideId "14112620"]
[WhiteElo "2492"]
[BlackElo "2412"]
[Result "1-0"]
[Round "10"]
[TimeControl "180+1"]
[Date "2021.12.07"]
[WhiteClock "0:00:22"]
[BlackClock "0:00:04"]

1. d4 {[%clk 0:02:43]}  Nf6 {[%clk 0:02:58]} 2. c4 {[%clk 0:02:38]}  g6 {[%clk 0:02:59]} 3. Nc3 {[%clk 0:02:37]}  Bg7 {[%clk 0:02:59]} 4. e4 {[%clk 0:02:37]}  O-O {[%clk 0:03:00]} 5. h3 {[%clk 0:02:37]}  d6 {[%clk 0:03:01]} 6. Bg5 {[%clk 0:02:37]}  c5 {[%clk 0:03:00]} 7. d5 {[%clk 0:02:37]}  e6 {[%clk 0:02:59]} 8. Bd3 {[%clk 0:02:33]}  exd5 {[%clk 0:02:59]} 9. exd5 {[%clk 0:02:32]}  h6 {[%clk 0:02:56]} 10. Be3 {[%clk 0:02:30]}  Bd7 {[%clk 0:02:36]} 11. Nf3 {[%clk 0:02:25]}  Na6 {[%clk 0:02:33]} 12. O-O {[%clk 0:02:22]}  Nc7 {[%clk 0:02:27]} 13. a4 {[%clk 0:02:19]}  Na6 {[%clk 0:02:27]} 14. Nb5 {[%clk 0:02:16]}  Bxb5 {[%clk 0:02:24]} 15. axb5 {[%clk 0:02:15]}  Nb4 {[%clk 0:02:25]} 16. Bb1 {[%clk 0:02:02]}  Nh5 {[%clk 0:01:56]} 17. Qd2 {[%clk 0:01:59]}  Qf6 {[%clk 0:01:52]} 18. Bxh6 {[%clk 0:01:32]}  Bxh6 {[%clk 0:01:39]} 19. Qxh6 {[%clk 0:01:31]}  Qxb2 {[%clk 0:01:40]} 20. Bxg6 {[%clk 0:01:24]}  fxg6 {[%clk 0:01:38]} 21. Qxg6+ {[%clk 0:01:23]}  Ng7 {[%clk 0:01:26]} 22. Ng5 {[%clk 0:01:23]}  Qc2 {[%clk 0:01:26]} 23. Qh6 {[%clk 0:00:55]}  Rf4 {[%clk 0:00:27]} 24. Rae1 {[%clk 0:00:45]}  Qf5 {[%clk 0:00:07]} 25. Re7 {[%clk 0:00:42]}  Qf6 {[%clk 0:00:08]} 26. Qh7+ {[%clk 0:00:33]}  Kf8 {[%clk 0:00:08]} 27. Rxg7 {[%clk 0:00:22]}  Qxg7 {[%clk 0:00:04]} 28. Ne6+ {[%clk 0:00:22]} 1-0


[Site "https://www.chess.com"]

[Event "Titled Tuesday Blitz December 7 2021"]
[White "Leitao, Rafael"]
[Black "Krutko, Anatoly"]
[WhiteFideId "2101246"]
[BlackFideId "4185862"]
[WhiteElo "2609"]
[BlackElo "2378"]
[Result "1-0"]
[Round "10"]
[TimeControl "180+1"]
[Date "2021.12.07"]
[WhiteClock "0:00:57"]
[BlackClock "0:00:07"]

1. c4 {[%clk 0:03:00]}  g6 {[%clk 0:02:58]} 2. g3 {[%clk 0:03:00]}  Bg7 {[%clk 0:02:58]} 3. Bg2 {[%clk 0:03:00]}  d6 {[%clk 0:02:59]} 4. Nc3 {[%clk 0:03:00]}  Nf6 {[%clk 0:02:59]} 5. Nf3 {[%clk 0:02:59]}  O-O {[%clk 0:03:00]} 6. d4 {[%clk 0:03:00]}  Nbd7 {[%clk 0:03:01]} 7. O-O {[%clk 0:03:00]}  e5 {[%clk 0:03:01]} 8. e4 {[%clk 0:03:00]}  exd4 {[%clk 0:03:02]} 9. Nxd4 {[%clk 0:03:00]}  Re8 {[%clk 0:03:02]} 10. h3 {[%clk 0:02:55]}  Rb8 {[%clk 0:03:02]} 11. Re1 {[%clk 0:02:54]}  a6 {[%clk 0:03:01]} 12. a4 {[%clk 0:02:51]}  a5 {[%clk 0:03:00]} 13. Ndb5 {[%clk 0:02:44]}  Nc5 {[%clk 0:02:52]} 14. Bf4 {[%clk 0:02:26]}  Nfd7 {[%clk 0:02:45]} 15. Nd5 {[%clk 0:02:15]}  c6 {[%clk 0:02:35]} 16. Nxd6 {[%clk 0:02:03]}  Re6 {[%clk 0:02:10]} 17. Nc3 {[%clk 0:01:32]}  Ne5 {[%clk 0:01:59]} 18. Nxc8 {[%clk 0:01:32]}  Qxc8 {[%clk 0:02:00]} 19. Qe2 {[%clk 0:01:30]}  Ned3 {[%clk 0:01:27]} 20. Bxb8 {[%clk 0:01:28]}  Nxe1 {[%clk 0:01:27]} 21. Ba7 {[%clk 0:01:13]}  Ned3 {[%clk 0:01:23]} 22. Rd1 {[%clk 0:01:08]}  Qa8 {[%clk 0:01:23]} 23. Bb6 {[%clk 0:01:07]}  Qa6 {[%clk 0:01:20]} 24. Bxc5 {[%clk 0:01:07]}  Nxc5 {[%clk 0:01:18]} 25. Rd8+ {[%clk 0:01:07]}  Bf8 {[%clk 0:01:18]} 26. Qd2 {[%clk 0:01:04]}  Qb6 {[%clk 0:00:20]} 27. Rc8 {[%clk 0:01:03]}  Re7 {[%clk 0:00:16]} 28. Qd6 {[%clk 0:00:56]}  Kg7 {[%clk 0:00:07]} 29. Nd5 {[%clk 0:00:57]} 1-0


[Site "https://www.chess.com"]

[Event "Titled Tuesday Blitz December 7 2021"]
[White "Makhmudov, Shukhrat"]
[Black "Vovk, Orest"]
[WhiteFideId "14200775"]
[BlackFideId "14113490"]
[WhiteElo "2135"]
[BlackElo "2203"]
[Result "0-1"]
[Round "10"]
[TimeControl "180+1"]
[Date "2021.12.07"]
[WhiteClock "0:00:02"]
[BlackClock "0:00:47"]

1. e4 {[%clk 0:03:00]}  Nc6 {[%clk 0:03:00]} 2. Nf3 {[%clk 0:03:00]}  d5 {[%clk 0:02:59]} 3. exd5 {[%clk 0:03:00]}  Qxd5 {[%clk 0:02:59]} 4. c4 {[%clk 0:02:54]}  Qa5 {[%clk 0:02:57]} 5. Nc3 {[%clk 0:02:52]}  Bg4 {[%clk 0:02:57]} 6. Be2 {[%clk 0:02:50]}  O-O-O {[%clk 0:02:57]} 7. O-O {[%clk 0:02:49]}  e6 {[%clk 0:02:54]} 8. h3 {[%clk 0:02:49]}  Bxf3 {[%clk 0:02:54]} 9. Bxf3 {[%clk 0:02:48]}  Nd4 {[%clk 0:02:54]} 10. d3 {[%clk 0:02:42]}  Nf6 {[%clk 0:02:50]} 11. a3 {[%clk 0:02:38]}  Qf5 {[%clk 0:02:49]} 12. Be4 {[%clk 0:02:29]}  Nxe4 {[%clk 0:02:48]} 13. dxe4 {[%clk 0:02:29]}  Qg6 {[%clk 0:02:42]} 14. Be3 {[%clk 0:02:24]}  Bc5 {[%clk 0:02:30]} 15. b4 {[%clk 0:02:23]}  Nc6 {[%clk 0:02:29]} 16. Qe2 {[%clk 0:02:11]}  Bxe3 {[%clk 0:02:28]} 17. Qxe3 {[%clk 0:02:11]}  Nd4 {[%clk 0:02:16]} 18. Rac1 {[%clk 0:02:04]}  Qh6 {[%clk 0:02:10]} 19. f4 {[%clk 0:01:55]}  Rd7 {[%clk 0:01:59]} 20. Nd5 {[%clk 0:01:47]}  exd5 {[%clk 0:01:59]} 21. Qxd4 {[%clk 0:01:47]}  dxe4 {[%clk 0:01:57]} 22. Qxe4 {[%clk 0:01:39]}  Rhd8 {[%clk 0:01:48]} 23. Qf5 {[%clk 0:01:27]}  Qg6 {[%clk 0:01:42]} 24. Qxg6 {[%clk 0:01:17]}  hxg6 {[%clk 0:01:42]} 25. Rc3 {[%clk 0:01:17]}  Rd4 {[%clk 0:01:33]} 26. f5 {[%clk 0:01:16]}  g5 {[%clk 0:01:28]} 27. f6 {[%clk 0:01:15]}  g6 {[%clk 0:01:28]} 28. c5 {[%clk 0:01:07]}  Re8 {[%clk 0:01:23]} 29. Rg3 {[%clk 0:01:03]}  Re5 {[%clk 0:01:23]} 30. Rg4 {[%clk 0:00:56]}  Rxg4 {[%clk 0:01:18]} 31. hxg4 {[%clk 0:00:56]}  Re4 {[%clk 0:01:17]} 32. b5 {[%clk 0:00:39]}  Kd7 {[%clk 0:01:13]} 33. Rd1+ {[%clk 0:00:39]}  Ke6 {[%clk 0:01:13]} 34. Rd8 {[%clk 0:00:37]}  Re5 {[%clk 0:01:08]} 35. c6 {[%clk 0:00:25]}  bxc6 {[%clk 0:01:06]} 36. bxc6 {[%clk 0:00:23]}  Rc5 {[%clk 0:01:04]} 37. Rd3 {[%clk 0:00:15]}  Kxf6 {[%clk 0:01:02]} 38. Kf2 {[%clk 0:00:12]}  Rxc6 {[%clk 0:01:02]} 39. Ke3 {[%clk 0:00:12]}  Rc4 {[%clk 0:01:02]} 40. Kf3 {[%clk 0:00:12]}  a5 {[%clk 0:01:01]} 41. Rd5 {[%clk 0:00:11]}  a4 {[%clk 0:01:01]} 42. Ra5 {[%clk 0:00:09]}  Rc3+ {[%clk 0:00:54]} 43. Kf2 {[%clk 0:00:09]}  Rxa3 {[%clk 0:00:54]} 44. Rc5 {[%clk 0:00:09]}  Rb3 {[%clk 0:00:50]} 45. Rxc7 {[%clk 0:00:09]}  a3 {[%clk 0:00:50]} 46. Ra7 {[%clk 0:00:08]}  Ke6 {[%clk 0:00:49]} 47. Ra5 {[%clk 0:00:08]}  f5 {[%clk 0:00:49]} 48. g3 {[%clk 0:00:03]}  Rb2+ {[%clk 0:00:46]} 49. Kf3 {[%clk 0:00:03]}  a2 {[%clk 0:00:47]} 50. gxf5+ {[%clk 0:00:02]}  gxf5 {[%clk 0:00:47]} 0-1


[Site "https://www.chess.com"]

[Event "Titled Tuesday Blitz December 7 2021"]
[White "Maly, Alexey"]
[Black "Matinian, Nikita"]
[WhiteFideId "14103184"]
[BlackFideId "24129100"]
[WhiteElo "2294"]
[BlackElo "2422"]
[Result "1-0"]
[Round "10"]
[TimeControl "180+1"]
[Date "2021.12.07"]
[WhiteClock "0:01:14"]
[BlackClock "0:00:26"]

1. d4 {[%clk 0:03:00]}  Nf6 {[%clk 0:02:59]} 2. c4 {[%clk 0:03:01]}  e6 {[%clk 0:02:59]} 3. Nf3 {[%clk 0:03:00]}  Bb4+ {[%clk 0:03:00]} 4. Nbd2 {[%clk 0:03:00]}  b6 {[%clk 0:02:57]} 5. g3 {[%clk 0:02:59]}  Bb7 {[%clk 0:02:57]} 6. Bg2 {[%clk 0:02:59]}  O-O {[%clk 0:02:56]} 7. O-O {[%clk 0:02:59]}  a5 {[%clk 0:02:54]} 8. b3 {[%clk 0:02:57]}  Bc3 {[%clk 0:02:52]} 9. Rb1 {[%clk 0:02:57]}  Na6 {[%clk 0:02:51]} 10. Bb2 {[%clk 0:02:55]}  Bxb2 {[%clk 0:02:51]} 11. Rxb2 {[%clk 0:02:56]}  d6 {[%clk 0:02:50]} 12. a3 {[%clk 0:02:52]}  c5 {[%clk 0:02:50]} 13. e3 {[%clk 0:02:49]}  Qe7 {[%clk 0:02:45]} 14. Qe2 {[%clk 0:02:50]}  Rfd8 {[%clk 0:02:42]} 15. Rc1 {[%clk 0:02:49]}  Rac8 {[%clk 0:02:40]} 16. Rbc2 {[%clk 0:02:46]}  Ne4 {[%clk 0:02:37]} 17. Nh4 {[%clk 0:02:43]}  Nxd2 {[%clk 0:02:36]} 18. Qxd2 {[%clk 0:02:42]}  Bxg2 {[%clk 0:02:35]} 19. Nxg2 {[%clk 0:02:43]}  d5 {[%clk 0:02:27]} 20. cxd5 {[%clk 0:02:41]}  Rxd5 {[%clk 0:02:28]} 21. Nf4 {[%clk 0:02:39]}  Rdd8 {[%clk 0:02:27]} 22. Qe2 {[%clk 0:02:37]}  Qb7 {[%clk 0:02:21]} 23. dxc5 {[%clk 0:02:23]}  Nxc5 {[%clk 0:02:20]} 24. b4 {[%clk 0:02:22]}  Ne4 {[%clk 0:02:09]} 25. Rxc8 {[%clk 0:02:15]}  Rxc8 {[%clk 0:02:10]} 26. Rxc8+ {[%clk 0:02:15]}  Qxc8 {[%clk 0:02:11]} 27. bxa5 {[%clk 0:02:10]}  bxa5 {[%clk 0:02:12]} 28. Qd3 {[%clk 0:02:10]}  Ng5 {[%clk 0:02:05]} 29. e4 {[%clk 0:02:00]}  e5 {[%clk 0:01:22]} 30. Nd5 {[%clk 0:01:57]}  Qe6 {[%clk 0:01:22]} 31. h4 {[%clk 0:01:52]}  Nh3+ {[%clk 0:01:15]} 32. Kg2 {[%clk 0:01:52]}  g5 {[%clk 0:01:16]} 33. h5 {[%clk 0:01:38]}  Kg7 {[%clk 0:01:12]} 34. Ne3 {[%clk 0:01:34]}  g4 {[%clk 0:00:37]} 35. Nf5+ {[%clk 0:01:27]}  Kf8 {[%clk 0:00:33]} 36. Qd8+ {[%clk 0:01:19]}  Qe8 {[%clk 0:00:33]} 37. Qd6+ {[%clk 0:01:19]}  Kg8 {[%clk 0:00:33]} 38. Qf6 {[%clk 0:01:16]}  Qe6 {[%clk 0:00:26]} 39. Qg7# {[%clk 0:01:14]} 1-0


[Site "https://www.chess.com"]

[Event "Titled Tuesday Blitz December 7 2021"]
[White "Materia, Marco"]
[Black "Shkapenko, Pavel"]
[WhiteFideId "45150451"]
[BlackFideId "4151933"]
[WhiteElo "2619"]
[BlackElo "2386"]
[Result "1/2-1/2"]
[Round "10"]
[TimeControl "180+1"]
[Date "2021.12.07"]
[WhiteClock "0:00:13"]
[BlackClock "0:00:04"]

1. d4 {[%clk 0:03:00]}  Nf6 {[%clk 0:02:57]} 2. c4 {[%clk 0:03:00]}  e6 {[%clk 0:02:57]} 3. Nf3 {[%clk 0:03:00]}  Bb4+ {[%clk 0:02:56]} 4. Nbd2 {[%clk 0:02:59]}  d5 {[%clk 0:02:56]} 5. Qa4+ {[%clk 0:02:56]}  Nc6 {[%clk 0:02:55]} 6. a3 {[%clk 0:02:56]}  Be7 {[%clk 0:02:54]} 7. e3 {[%clk 0:02:54]}  a5 {[%clk 0:02:42]} 8. Bd3 {[%clk 0:02:38]}  O-O {[%clk 0:02:36]} 9. O-O {[%clk 0:02:37]}  Bd7 {[%clk 0:02:36]} 10. Qc2 {[%clk 0:02:36]}  a4 {[%clk 0:02:26]} 11. e4 {[%clk 0:02:35]}  g6 {[%clk 0:02:24]} 12. e5 {[%clk 0:02:28]}  Nh5 {[%clk 0:02:16]} 13. Rd1 {[%clk 0:02:23]}  Na5 {[%clk 0:02:05]} 14. cxd5 {[%clk 0:02:06]}  exd5 {[%clk 0:02:04]} 15. Nf1 {[%clk 0:01:50]}  Nb3 {[%clk 0:02:02]} 16. Rb1 {[%clk 0:01:51]}  c5 {[%clk 0:02:00]} 17. dxc5 {[%clk 0:01:49]}  Nxc5 {[%clk 0:02:01]} 18. Bh6 {[%clk 0:01:47]}  Re8 {[%clk 0:01:47]} 19. Ne3 {[%clk 0:01:41]}  Nxd3 {[%clk 0:01:44]} 20. Qxd3 {[%clk 0:01:40]}  Be6 {[%clk 0:01:40]} 21. Rbc1 {[%clk 0:01:34]}  Ra5 {[%clk 0:01:34]} 22. Nd4 {[%clk 0:01:31]}  Bg5 {[%clk 0:01:29]} 23. Bxg5 {[%clk 0:01:29]}  Qxg5 {[%clk 0:01:30]} 24. Nxe6 {[%clk 0:01:28]}  fxe6 {[%clk 0:01:30]} 25. Qc3 {[%clk 0:01:25]}  Rb5 {[%clk 0:01:25]} 26. Qc7 {[%clk 0:01:18]}  Rxb2 {[%clk 0:01:08]} 27. Qd7 {[%clk 0:01:17]}  Qe7 {[%clk 0:01:05]} 28. Qxa4 {[%clk 0:01:15]}  Rf8 {[%clk 0:00:53]} 29. Rc2 {[%clk 0:01:13]}  b5 {[%clk 0:00:44]} 30. Qd4 {[%clk 0:01:04]}  Rxc2 {[%clk 0:00:43]} 31. Nxc2 {[%clk 0:01:04]}  Nf4 {[%clk 0:00:43]} 32. Qe3 {[%clk 0:00:57]}  Qg5 {[%clk 0:00:41]} 33. Ne1 {[%clk 0:00:51]}  Qg4 {[%clk 0:00:33]} 34. Rb1 {[%clk 0:00:46]}  d4 {[%clk 0:00:32]} 35. Qd2 {[%clk 0:00:41]}  Ne2+ {[%clk 0:00:32]} 36. Kf1 {[%clk 0:00:41]}  Nc3 {[%clk 0:00:31]} 37. Rb4 {[%clk 0:00:39]}  Qh5 {[%clk 0:00:17]} 38. Rxd4 {[%clk 0:00:37]}  Nd5 {[%clk 0:00:16]} 39. Nf3 {[%clk 0:00:33]}  Rxf3 {[%clk 0:00:12]} 40. gxf3 {[%clk 0:00:28]}  Qxf3 {[%clk 0:00:12]} 41. Qd3 {[%clk 0:00:26]}  Qh1+ {[%clk 0:00:09]} 42. Ke2 {[%clk 0:00:27]}  Qxh2 {[%clk 0:00:10]} 43. Rxd5 {[%clk 0:00:26]}  exd5 {[%clk 0:00:10]} 44. Qxd5+ {[%clk 0:00:27]}  Kg7 {[%clk 0:00:10]} 45. Qd7+ {[%clk 0:00:25]}  Kh6 {[%clk 0:00:09]} 46. Qxb5 {[%clk 0:00:24]}  Qh5+ {[%clk 0:00:09]} 47. f3 {[%clk 0:00:25]}  Qh2+ {[%clk 0:00:08]} 48. Ke3 {[%clk 0:00:25]}  Qg1+ {[%clk 0:00:08]} 49. Ke4 {[%clk 0:00:26]}  Qe1+ {[%clk 0:00:08]} 50. Kd5 {[%clk 0:00:27]}  Qd1+ {[%clk 0:00:07]} 51. Ke6 {[%clk 0:00:25]}  Qxf3 {[%clk 0:00:06]} 52. a4 {[%clk 0:00:25]}  g5 {[%clk 0:00:06]} 53. a5 {[%clk 0:00:26]}  g4 {[%clk 0:00:07]} 54. a6 {[%clk 0:00:26]}  g3 {[%clk 0:00:07]} 55. a7 {[%clk 0:00:24]}  g2 {[%clk 0:00:06]} 56. Qc5 {[%clk 0:00:23]}  Kg6 {[%clk 0:00:06]} 57. Kd7 {[%clk 0:00:21]}  Qf5+ {[%clk 0:00:05]} 58. Kc7 {[%clk 0:00:19]}  Qf7+ {[%clk 0:00:04]} 59. Kb6 {[%clk 0:00:18]}  Qe6+ {[%clk 0:00:03]} 60. Kb7 {[%clk 0:00:17]}  Qd7+ {[%clk 0:00:04]} 61. Kb6 {[%clk 0:00:15]}  Qe6+ {[%clk 0:00:04]} 62. Kb7 {[%clk 0:00:14]}  Qd7+ {[%clk 0:00:04]} 63. Kb6 {[%clk 0:00:13]}  Qe6+ {[%clk 0:00:04]} 1/2-1/2


[Site "https://www.chess.com"]

[Event "Titled Tuesday Blitz December 7 2021"]
[White "Mikhailovsky, Vladimir"]
[Black "Wadsworth, Matthew J"]
[WhiteFideId "34105414"]
[BlackFideId "415804"]
[WhiteElo "2409"]
[BlackElo "2293"]
[Result "1-0"]
[Round "10"]
[TimeControl "180+1"]
[Date "2021.12.07"]
[WhiteClock "0:00:06"]
[BlackClock "0:00:03"]

1. e4 {[%clk 0:03:00]}  c5 {[%clk 0:02:59]} 2. Nf3 {[%clk 0:03:00]}  e6 {[%clk 0:02:59]} 3. g3 {[%clk 0:02:54]}  Nc6 {[%clk 0:02:57]} 4. Bg2 {[%clk 0:02:54]}  Nf6 {[%clk 0:02:57]} 5. Qe2 {[%clk 0:02:53]}  d5 {[%clk 0:02:55]} 6. exd5 {[%clk 0:02:51]}  Nxd5 {[%clk 0:02:53]} 7. O-O {[%clk 0:02:52]}  Be7 {[%clk 0:02:44]} 8. Rd1 {[%clk 0:02:52]}  Bf6 {[%clk 0:02:36]} 9. Nc3 {[%clk 0:02:51]}  O-O {[%clk 0:02:35]} 10. Ne4 {[%clk 0:02:52]}  Bd7 {[%clk 0:02:21]} 11. Nxc5 {[%clk 0:02:43]}  Nd4 {[%clk 0:02:07]} 12. Nxd4 {[%clk 0:02:41]}  Bxd4 {[%clk 0:02:07]} 13. Nxd7 {[%clk 0:02:41]}  Qxd7 {[%clk 0:02:07]} 14. c3 {[%clk 0:02:42]}  Bf6 {[%clk 0:02:06]} 15. d4 {[%clk 0:02:41]}  Rac8 {[%clk 0:02:04]} 16. h4 {[%clk 0:02:32]}  Rfd8 {[%clk 0:02:03]} 17. Kh2 {[%clk 0:02:17]}  b5 {[%clk 0:02:00]} 18. Qf3 {[%clk 0:01:58]}  h6 {[%clk 0:01:53]} 19. Bf4 {[%clk 0:01:57]}  a5 {[%clk 0:01:46]} 20. Rac1 {[%clk 0:01:53]}  a4 {[%clk 0:01:24]} 21. a3 {[%clk 0:01:49]}  Qe7 {[%clk 0:01:13]} 22. Be5 {[%clk 0:01:46]}  Bxe5 {[%clk 0:01:09]} 23. dxe5 {[%clk 0:01:47]}  Nb6 {[%clk 0:00:58]} 24. Rxd8+ {[%clk 0:01:05]}  Qxd8 {[%clk 0:00:49]} 25. Rd1 {[%clk 0:01:00]}  Qc7 {[%clk 0:00:49]} 26. Rd6 {[%clk 0:00:43]}  Nc4 {[%clk 0:00:45]} 27. Rc6 {[%clk 0:00:42]}  Qd7 {[%clk 0:00:43]} 28. Rxc8+ {[%clk 0:00:43]}  Qxc8 {[%clk 0:00:42]} 29. Bf1 {[%clk 0:00:17]}  Nxe5 {[%clk 0:00:35]} 30. Qe4 {[%clk 0:00:08]}  Nc4 {[%clk 0:00:24]} 31. Bxc4 {[%clk 0:00:08]}  Qxc4 {[%clk 0:00:20]} 32. Qa8+ {[%clk 0:00:03]}  Kh7 {[%clk 0:00:20]} 33. Qf3 {[%clk 0:00:04]}  Kg8 {[%clk 0:00:11]} 34. Qa8+ {[%clk 0:00:04]}  Kh7 {[%clk 0:00:11]} 35. Qf3 {[%clk 0:00:05]}  f5 {[%clk 0:00:11]} 36. Qe3 {[%clk 0:00:04]}  Qb3 {[%clk 0:00:08]} 37. Qe2 {[%clk 0:00:04]}  Qd5 {[%clk 0:00:07]} 38. Qe3 {[%clk 0:00:03]}  Qb3 {[%clk 0:00:05]} 39. Qe2 {[%clk 0:00:03]}  g5 {[%clk 0:00:06]} 40. hxg5 {[%clk 0:00:03]}  hxg5 {[%clk 0:00:06]} 41. Qh5+ {[%clk 0:00:03]}  Kg7 {[%clk 0:00:06]} 42. Qxg5+ {[%clk 0:00:04]}  Kf7 {[%clk 0:00:07]} 43. Qd2 {[%clk 0:00:05]}  Kf6 {[%clk 0:00:06]} 44. Kg2 {[%clk 0:00:05]}  Kf7 {[%clk 0:00:04]} 45. Qd7+ {[%clk 0:00:05]}  Kf6 {[%clk 0:00:04]} 46. Qd8+ {[%clk 0:00:06]}  Kf7 {[%clk 0:00:04]} 47. Qd7+ {[%clk 0:00:06]}  Kf6 {[%clk 0:00:04]} 48. Qd2 {[%clk 0:00:07]}  Kf7 {[%clk 0:00:04]} 49. Qd4 {[%clk 0:00:07]}  Qxb2 {[%clk 0:00:04]} 50. Qd7+ {[%clk 0:00:07]}  Kf6 {[%clk 0:00:04]} 51. Qe8 {[%clk 0:00:06]}  Qxa3 {[%clk 0:00:03]} 52. Qh8+ {[%clk 0:00:05]}  Ke7 {[%clk 0:00:03]} 53. Qg7+ {[%clk 0:00:06]}  Kd6 {[%clk 0:00:04]} 54. Qf8+ {[%clk 0:00:05]}  Kd5 {[%clk 0:00:03]} 55. Qxa3 {[%clk 0:00:06]} 1-0


[Site "https://www.chess.com"]

[Event "Titled Tuesday Blitz December 7 2021"]
[White "Mirzoev, Azer"]
[Black "Vantika, Agrawal"]
[WhiteFideId "13400304"]
[BlackFideId "25050389"]
[WhiteElo "2525"]
[BlackElo "1917"]
[Result "1-0"]
[Round "10"]
[TimeControl "180+1"]
[Date "2021.12.07"]
[WhiteClock "0:00:31"]
[BlackClock "0:00:02"]

1. d4 {[%clk 0:03:00]}  Nf6 {[%clk 0:02:58]} 2. Nf3 {[%clk 0:03:00]}  d5 {[%clk 0:02:57]} 3. Bf4 {[%clk 0:03:00]}  c5 {[%clk 0:02:56]} 4. e3 {[%clk 0:03:01]}  Nc6 {[%clk 0:02:55]} 5. c3 {[%clk 0:03:01]}  Nh5 {[%clk 0:02:55]} 6. Be5 {[%clk 0:02:57]}  f6 {[%clk 0:02:55]} 7. Bg3 {[%clk 0:02:58]}  g6 {[%clk 0:02:28]} 8. Nbd2 {[%clk 0:02:55]}  cxd4 {[%clk 0:02:19]} 9. cxd4 {[%clk 0:02:55]}  Qb6 {[%clk 0:02:16]} 10. Qb3 {[%clk 0:02:53]}  Qxb3 {[%clk 0:02:15]} 11. Nxb3 {[%clk 0:02:54]}  Nxg3 {[%clk 0:02:11]} 12. hxg3 {[%clk 0:02:54]}  e5 {[%clk 0:01:54]} 13. dxe5 {[%clk 0:02:52]}  fxe5 {[%clk 0:01:53]} 14. Bb5 {[%clk 0:02:52]}  Bg7 {[%clk 0:01:47]} 15. Rc1 {[%clk 0:02:50]}  Kd7 {[%clk 0:01:28]} 16. O-O {[%clk 0:02:42]}  Kd6 {[%clk 0:01:22]} 17. Rfd1 {[%clk 0:02:40]}  Ne7 {[%clk 0:01:11]} 18. Ng5 {[%clk 0:02:34]}  Rf8 {[%clk 0:00:58]} 19. Ne4+ {[%clk 0:02:19]}  Ke6 {[%clk 0:00:57]} 20. Nbc5+ {[%clk 0:02:19]}  Kf7 {[%clk 0:00:51]} 21. Nd6+ {[%clk 0:02:01]}  Kg8 {[%clk 0:00:51]} 22. Nxc8 {[%clk 0:01:40]}  Rfxc8 {[%clk 0:00:50]} 23. Nxb7 {[%clk 0:01:27]}  Rab8 {[%clk 0:00:41]} 24. Ba6 {[%clk 0:01:12]}  e4 {[%clk 0:00:20]} 25. b4 {[%clk 0:01:10]}  Bb2 {[%clk 0:00:18]} 26. Rxc8+ {[%clk 0:01:07]}  Rxc8 {[%clk 0:00:19]} 27. Nc5 {[%clk 0:01:05]}  Rc7 {[%clk 0:00:18]} 28. Nb3 {[%clk 0:00:52]}  Ba3 {[%clk 0:00:15]} 29. b5 {[%clk 0:00:39]}  Rc2 {[%clk 0:00:11]} 30. Bb7 {[%clk 0:00:37]}  Rxa2 {[%clk 0:00:08]} 31. Bxd5+ {[%clk 0:00:33]}  Nxd5 {[%clk 0:00:08]} 32. Rxd5 {[%clk 0:00:34]}  Rb2 {[%clk 0:00:07]} 33. Nd4 {[%clk 0:00:33]}  Rb1+ {[%clk 0:00:04]} 34. Kh2 {[%clk 0:00:33]}  Rb2 {[%clk 0:00:04]} 35. Rd8+ {[%clk 0:00:32]}  Kg7 {[%clk 0:00:04]} 36. Rd7+ {[%clk 0:00:32]}  Kf6 {[%clk 0:00:03]} 37. Rxa7 {[%clk 0:00:31]}  Bc5 {[%clk 0:00:03]} 38. Rxh7 {[%clk 0:00:30]}  Bxd4 {[%clk 0:00:03]} 39. exd4 {[%clk 0:00:30]}  Rxb5 {[%clk 0:00:02]} 40. Rh4 {[%clk 0:00:28]}  Rb2 {[%clk 0:00:01]} 41. Rxe4 {[%clk 0:00:27]}  Rxf2 {[%clk 0:00:01]} 42. Rf4+ {[%clk 0:00:27]}  Rxf4 {[%clk 0:00:01]} 43. gxf4 {[%clk 0:00:27]}  Kf5 {[%clk 0:00:02]} 44. Kg3 {[%clk 0:00:28]}  Ke4 {[%clk 0:00:02]} 45. Kg4 {[%clk 0:00:28]}  Kxd4 {[%clk 0:00:02]} 46. Kg5 {[%clk 0:00:29]}  Ke4 {[%clk 0:00:02]} 47. g4 {[%clk 0:00:29]}  Kf3 {[%clk 0:00:02]} 48. f5 {[%clk 0:00:30]}  gxf5 {[%clk 0:00:02]} 49. gxf5 {[%clk 0:00:30]}  Ke4 {[%clk 0:00:02]} 50. f6 {[%clk 0:00:31]} 1-0


[Site "https://www.chess.com"]